Cogmind - Beta 13 X1 @@@ ROGUE MODE // 2023.07.06 @ 20:23:26 Player: tourn Result: Destroyed by UU-WWM(R) with Subdweller Machine Gun Performance ------------- Evolutions (0) 0 Regions Visited (2) 400 Robots Destroyed (19) 95 Value Destroyed (433) 433 Prototype IDs (10) 200 Alien Tech Used (0) 0 Bonus (0) 0 TOTAL SCORE: 1128 Bonus ------- None Cogmind --------- Core Integrity 0/250 Matter 234/300 Energy 125/125 System Corruption 2% Temperature Cool (0) Movement Treading (260) Ox1 Location -10/Subcaves Parts ------- > --- POWER (1) -------- Light Ion Engine > --- PROPULSION (2) --- Spiked Treads > --- UTILITY (2) ------ Medium Storage Unit Subdweller Optics > --- WEAPON (2) ------- Subdweller Machine Gun Subdweller Shrapnel Launcher > --- INVENTORY (10) --- Arachnoskeleton Large Storage Unit Structural Scanner Scrap Shield Subdweller Laser Beamcaster Mining Laser Peak State ------------ > --- POWER ------------ Light Ion Engine > --- PROPULSION ------- Light Treads Spiked Treads > --- UTILITY ---------- Medium Storage Unit Subdweller Optics > --- WEAPON ----------- Beamcaster Subdweller Machine Gun > --- INVENTORY -------- Arachnoskeleton Large Storage Unit Structural Scanner Scrap Shield Subdweller Laser Subdweller Shrapnel Launcher Mining Laser [Rating: 17] Favorites ----------- Power Light Ion Engine Engine Light Ion Engine Propulsion Aluminum Leg Treads Spiked Treads Leg Aluminum Leg Wheel Subdweller Monowheel Utility Medium Storage Unit Device Structural Scanner Storage Medium Storage Unit Weapon Light Assault Rifle Energy Gun EM Pulse Gun Ballistic Gun Light Assault Rifle Launcher Subdweller Shrapnel Launcher Build | -11 -10 -10 ------- Run | Jun Mat Sub Slots Evolved . | . . . Power . | . . . Propulsion . | . . . Utility . | . . . Weapon . | . . . Parts Attached 21 | . 10 11 Power 2 | . 1 1 Engine 2 | . 1 1 Core . | . . . Reactor . | . . . Propulsion 9 | . 5 4 Treads 4 | . 1 3 Leg 4 | . 4 . Wheel 1 | . . 1 Hover . | . . . Flight . | . . . Utility 4 | . 3 1 Device 3 | . 2 1 Storage 1 | . 1 . Processor . | . . . Hackware . | . . . Protection . | . . . Artifact . | . . . Weapon 6 | . 1 5 Energy Gun 3 | . . 3 Energy Cannon . | . . . Ballistic Gun 2 | . 1 1 Ballistic Cannon . | . . . Launcher 1 | . . 1 Special Weapon . | . . . Impact Weapon . | . . . Slashing Weapon . | . . . Piercing Weapon . | . . . Special Melee Weapon . | . . . Unidentified Prototypes . | . . . Parts Lost 6 | . 4 2 Power 1 | . 1 . Propulsion 4 | . 2 2 Utility . | . . . Weapon 1 | . 1 . Highest Loss Streak 2 | . 2 2 To Critical Strikes . | . . . Average Slot Usage (%) 98 | . 98 97 Engine 13 | . 13 14 Treads 7 | . . 23 Leg 19 | . 27 1 Device 13 | . 13 13 Storage 14 | . 14 14 Energy Gun 12 | . 9 18 Ballistic Gun 14 | . 18 7 Naked Turns . | . . . Heaviest Build 27 | 11 17 27 Greatest Support 40 | 20 20 40 Greatest Overweight (x) 1 | . 1 1 Average Overweight (x) . | . . . Largest Inventory Capacity 10 | 8 10 10 Average Capacity 9 | 8 9 10 Most Carried 10 | 6 10 10 Average Carried 8 | 6 7 9 Final Capacity 10 | 8 10 10 Final Carried 10 | 6 10 10 Class Distribution -------------------- 71% | Mutant 28% | Subdweller-Mutant Dominant Class ---------------- Mutant | -10/Materials Subdweller-Mutant | -10/Subcaves Resources | -11 -10 -10 ----------- Run | Jun Mat Sub Matter Collected 464 | 190 166 108 Remotely 59 | . 59 . Salvage Created 562 | . 399 163 Parts 35 | . 24 11 Haulers Intercepted 1 | . 1 . Recyclers Shooed 1 | . 1 . Parts Field Recycled . | . . . Retrieved Matter . | . . . Parts Self-Destructed 5 | . . 5 Prevented . | . . . Kills | -11 -10 -10 ------- Run | Jun Mat Sub Combat Hostiles Destroyed 15 | . 11 4 Guns 10 | . 8 2 AOE 5 | . 3 2 Classes Destroyed 6 | . 5 1 Worker 2 | . 2 . Hauler 1 | . 1 . Watcher 1 | . 1 . Swarmer 6 | . 6 . Grunt 5 | . 5 . Subdweller 4 | . . 4 Best Kill Streak 3 | . 3 3 Combat Bots Only 3 | . 3 3 Max Kills in Single Turn 2 | . 2 1 Gunslinging . | . . . Exploded 2 | . 2 1 Melee . | . . . Uniques/NPCs Destroyed . | . . . Combat | -11 -10 -10 -------- Run | Jun Mat Sub Damage Taken 1215 | . 649 566 Core 260 | . 130 130 Absorbed by Shields . | . . . Core Remaining (%) 100 | 100 . . Volleys Fired 72 | . 50 22 Largest 2 | . 2 2 Hottest 120 | . 60 120 Shots Fired 125 | . 95 30 Gun 123 | . 95 28 Cannon . | . . . Launcher 2 | . . 2 Special . | . . . Kinetic 77 | . 70 7 Thermal 23 | . . 23 Explosive . | . . . Electromagnetic 25 | . 25 . Robot Hit Streak 25 | . 14 25 Robot Miss Streak 6 | . 6 4 Penetration Max . | . . . Secondary Targets 1 | . 1 . Max Gunslinging Chain 1 | . 1 . Shots Hit Robots 68 | . 52 16 Core Hits 34 | . 26 8 Critical Kills . | . . . Critical Parts Destroyed . | . . . Critical Strikes . | . . . Melee Attacks . | . . . Impact . | . . . Slashing . | . . . Piercing . | . . . Sneak Attacks . | . . . Combat Hostiles . | . . . Follow-up Attacks . | . . . Damage Inflicted 1230 | . 704 526 Guns 784 | . 535 249 Cannons . | . . . Explosions 446 | . 169 277 Melee . | . . . Ramming . | . . . Kinetic 695 | . 350 345 Thermal 350 | . 169 181 Explosive . | . . . Electromagnetic 185 | . 185 . Impact . | . . . Slashing . | . . . Piercing . | . . . Highest Corruption 2 | . 2 2 Average Corruption 2 | . 2 2 Corruption Purged . | . . . Corruption Blocked . | . . . Effects 8 | . 1 7 Matter Fused 4 | . . 4 Energy Discharges 1 | . . 1 Data Loss (minor) 1 | . . 1 Misfires 2 | . 1 1 Overload Shots . | . . . Overflow Damage 42 | . 31 11 Projectiles . | . . . Explosions 42 | . 31 11 Melee . | . . . Knockbacks . | . . . Impact . | . . . Kinetic . | . . . Secondary . | . . . Self-Inflicted Damage 92 | . 39 53 Shots 3 | . 1 2 Rammed . | . . . Targets Rammed . | . . . Kicked . | . . . Crushed . | . . . Highest Temperature 100 | . 100 12 Average Temperature 29 | . 33 5 Received Heat Transfer 228 | . 156 72 Siege Activations . | . . . Robots Corrupted 1 | . 1 . Combat Hostiles . | . . . Parts Fried 4 | . 4 . Impact Corruptions . | . . . Robots Melted . | . . . Combat Hostiles . | . . . Parts Melted . | . . . Heat Transferred 449 | . 200 249 Parts Sabotaged . | . . . Parts Stolen . | . . . Parts Stripped . | . . . Power Chain Reactions 3 | . 3 . Missiles Intercepted . | . . . Alert | -11 -10 -10 ------- Run | Jun Mat Sub Peak Influence 197 | . 197 . Initial . | . . . Average 107 | . 113 . Maximum Alert Level . | . . . Low Security (%) 100 | 100 100 . Level 1 . | . . . Level 2 . | . . . Level 3 . | . . . Level 4 . | . . . Level 5 . | . . . High Security . | . . . Max Security . | . . . Squads Dispatched 1 | . 1 . Investigation . | . . . Extermination . | . . . Reinforcement 1 | . 1 . Assault . | . . . Garrison . | . . . Intercept . | . . . Searches Triggered . | . . . Construction Impeded . | . . . Haulers Reinforced . | . . . Active Scanning Responses . | . . . Cargo Convoy Interrupts . | . . . Stealth | -11 -10 -10 --------- Run | Jun Mat Sub Distress Signals 1 | . 1 . Communications Jammed . | . . . Distress Signals . | . . . Times Spotted 26 | . 16 10 Peak Tracking Total 5 | . 5 4 Tactical Retreats 2 | . 1 1 Traps | -11 -10 -10 ------- Run | Jun Mat Sub Traps Triggered 1 | . 1 . Indirectly . | . . . Trap Hack Attempts . | . . . Triggered . | . . . Disarmed . | . . . Reprogrammed . | . . . Reused . | . . . Traps Extracted . | . . . Installed . | . . . Triggered 1 | . 1 . Machines | -11 -10 -10 ---------- Run | Jun Mat Sub Machines Disabled 2 | . 1 1 Max in Single Turn 1 | . 1 1 Machines Repaired . | . . . Machines Sabotaged . | . . . Overloaded Fab Kills . | . . . Hacking | -11 -10 -10 --------- Run | Jun Mat Sub Machines Accessed 5 | . 4 1 Terminals 4 | . 4 . Fabricators . | . . . Repair Stations . | . . . Recycling Units . | . . . Scanalyzers . | . . . Garrison Access . | . . . Total Hacks 19 | . 10 9 Successful 12 | . 3 9 Failed 7 | . 7 . Catastrophic 1 | . 1 . Database Lockouts . | . . . Manual 9 | . 9 . Terminals 10 | . 10 . Fabricators . | . . . Repair Stations . | . . . Recycling Units . | . . . Scanalyzers . | . . . Garrison Access . | . . . Terminal Hacks 11 | . 2 9 Record 8 | . . 8 Robot Analysis 1 | . 1 . Zone Layout 1 | . 1 . Derelict Proto ID Bank 1 | . . 1 Fabricator Hacks . | . . . Repair Station Hacks . | . . . Recycling Unit Hacks . | . . . Scanalyzer . | . . . Garrison Access Hacks . | . . . Unauthorized Hacks 1 | . 1 . Terminals 1 | . 1 . Botnet 1 | . 1 . Fabricators . | . . . Repair Stations . | . . . Recycling Units . | . . . Scanalyzers . | . . . Garrison Access . | . . . Data Cores Recovered . | . . . Used . | . . . Hacking Detections 3 | . 3 . Full Trace Events . | . . . Feedback Events . | . . . Feedback Blocked . | . . . Robot Schematics Acquired . | . . . Robots Built . | . . . Authchips . | . . . Time . | . . . Total Robot Build Rating . | . . . Part Schematics Acquired . | . . . Parts Built . | . . . Authchips . | . . . Time . | . . . Total Part Build Rating . | . . . Parts Repaired . | . . . Time . | . . . Parts Recycled . | . . . Recycled Matter . | . . . Retrieved Matter . | . . . Retrieved Components . | . . . Parts Scanalyzed . | . . . Part Schematics Acquired . | . . . Parts Damaged . | . . . Bothacking | -11 -10 -10 ------------ Run | Jun Mat Sub Used RIF Installer . | . . . Robots Hacked . | . . . Non-combat . | . . . Combat . | . . . Robot Hacks Applied . | . . . Relay Couplers Released . | . . . Fabnet Peak Effective % . | . . . Robots Rewired . | . . . Allies Hacked . | . . . Hacks Repelled . | . . . Allies | -11 -10 -10 -------- Run | Jun Mat Sub Total Allies . | . . . Largest Group . | . . . Highest-Rated Group . | . . . Highest-Rated Ally . | . . . Total Orders . | . . . Ally Attacks . | . . . Total Damage . | . . . Kills . | . . . Allies Corrupted . | . . . Allies Melted . | . . . Intel | -11 -10 -10 ------- Run | Jun Mat Sub Robot Analysis Total 1 | . 1 . Derelict Logs Recovered 2 | . . 2 Drone Launches . | . . . Drone Recoveries . | . . . Exploration | -11 -10 -10 ------------- Run | Jun Mat Sub Turns Passed 1058 | 39 705 314 Spaces Moved 611 | 33 437 141 Core . | . . . Treads 116 | . . 116 Legs 480 | 33 437 10 Wheels 15 | . . 15 Hover . | . . . Flight . | . . . Fastest Speed 120 | 120 120 120 Average Speed 130 | 120 120 162 Slowest Speed 260 | 120 190 260 Overloaded Moves . | . . . Propulsion Burnouts . | . . . Robots Hopped . | . . . Cave-ins Triggered . | . . . Exploration Rate (%) 31 | 3 71 19 Regions Visited 2 Branch Regions 1 Pre-discovered Areas 1 | . . 1 Known Exits Taken . | . . . Unknown Exits Taken 2 | 1 1 . Scrap Searched 1 | . . 1 Spaces Dug . | . . . Terrain Destroyed 22 | . 7 15 Melee . | . . . Projectile . | . . . AOE 22 | . 7 15 Terrain Rammed . | . . . Walls Destroyed . | . . . Machines Disabled . | . . . Actions | -11 -10 -10 --------- Run | Jun Mat Sub Total 764 | 32 534 198 Wait 34 | . 28 6 Move 609 | 32 436 141 Hop . | . . . Pick Up 9 | . 6 3 Fast Attach 11 | . 3 8 Attach 4 | . 4 . Detach 3 | . 1 2 Swap 6 | . 3 3 Drop 16 | . 3 13 Fire 72 | . 50 22 Melee . | . . . Ram . | . . . Kick . | . . . Crush . | . . . Escape Stasis . | . . . Rewire . | . . . Trap . | . . . Miscellaneous . | . . . Route ------- -11/Junkyard -10/Materials (discovered 4 exits: [*Mat] / [*Min x2] / *Sub) -10/Subcaves History --------- Turn | Location | Event 1 | -11/Junkyard | Discovered new exit (range 3) 40 | -11/Junkyard | Entered Materials 76 | -10/Materials | Discovered new exit (range 16) 206 | -10/Materials | Discovered new exit (range 9) 238 | -10/Materials | Discovered new exit (range 10) 328 | -10/Materials | Build established: Mutant 583 | -10/Materials | Discovered new exit (range 5) 693 | -10/Materials | Core integrity fell below 50% 745 | -10/Materials | Entered Subcaves 747 | -10/Subcaves | Learned location of 1 exit from Materials 756 | -10/Subcaves | Learned location of Zion (-7) 756 | -10/Subcaves | Met a Zionite searching for "candidates" 891 | -10/Subcaves | Ambushed by swarm of Subdwellers 892 | -10/Subcaves | Visited 4L-MR0's lab 916 | -10/Subcaves | Found Arachnoskeleton 987 | -10/Subcaves | Ambushed by Subdweller buried in earth 1004 | -10/Subcaves | Core integrity fell below 20% 1005 | -10/Subcaves | Ambushed by Subdweller buried in earth 1049 | -10/Subcaves | Build established: Subdweller-Mutant 1059 | -10/Subcaves | Destroyed by UU-WWM(R) with Subdweller Machine Gun Last Messages --------------- 00977_ Acquired Beamcaster. 00978_ Acquired 20 matter. 00981_ System corrupted: Energy discharge (-42). 00988_ BA-HUS(R): "SLEEPOVER!" 00988_ 40-0VV(R) destroyed. 01000_ BA-HUS(R) affixes Scrap Shield Fragment to Scrap Shield. 01002_ LE-MN9(R) affixes Scrap Shield Fragment to Scrap Shield. 01003_ BA-HUS(R) destroyed. 01003_ Lgt. Treads destroyed. 01003_ Destroyed Lgt. Treads. 01004_ System corrupted: Matter fused (-6). 01005_ LE-MN9(R) destroyed. 01006_ PO-21F(R): "NOSTUCKSUB!" 01009_ Acquired Sub. Monowheel. 01013_ UU-WWM(R) affixes Scrap Shield Fragment to Scrap Shield. 01015_ PO-21F(R) affixes Scrap Shield Fragment to Scrap Shield. 01020_ UU-WWM(R) affixes Scrap Shield Fragment to Scrap Shield. 01023_ PO-21F(R) affixes Scrap Shield Fragment to Scrap Shield. 01029_ Sub. Monowheel destroyed. 01030_ Sub. Optics shoots sparks and powers down. Map ----- +----------------------------------------------------+ | ?????????????????????????????????????????????????? | | ?????????????????????????????????????????????????? | | ?????????????????????????????????????????????????? | | ?????????????????????????????????????????????????? | | ?????????????????????????????????????????????????? | | ?????????????????????????????????????????????????? | | ?????????????????????????????????????????????????? | | ?????????????????????????????????????????????????? | | ?????????????????????????????????????????????????? | | ?????????????????????????????????????????????????? | | ?????????????????????????????????????????????????? | | ?????????????????????????????????????????????????? | | ?????????????????????????????????????????????????? | | ?????????????????????????????????????????????????? | | ?????????????????????????????????????????????????? | | ??????????????????????????????##?????????????????? | | ?????????????###?#???????????? #?????????????????? | | ?????????????# # ??????????? ??????????????????? | | ?????????????# ??????????? ???????????????????? | | ?????????????# ?????????? ???????????????????? | | ?????????????# ?????????? ????????????????????? | | ??????????????# #????????? #????????????????????? | | ??????????????# ####?????? #????????????????????? | | ?????????????## ##???? ##???????????????????? | | ???????????### ##### #???????????????????? | | ???????????# # ##@ ##???????????????????? | | ???????????# #???????????????????? | | ????????####### #???????????????????? | | ????????# ##??# # # # #???????????????????? | | ????????# #??# #########???????????????????? | | ######??# #?## ##???????????????????????????? | | ""#### ### #????????????????????????????? | | """ "## #????????????????????????????? | | " R ##????????????????????????????? | | #?????????????????????????????? | | ##?????????????????????????????? | | ###### #??????????????????????????????? | | #???## #??????????????????????????????? | | ##????### ###??????????????????????????????? | | ####??## #????????????????????????????????? | | ## #### #????????????????????????????????? | | ## ## ####?????????????????????????????? | | ]"# ## #?????????????????????????????? | | "%" #?????????????????????????????? | | #! #?????????????????????????????? | | ## ## ??????????????????????????????? | | # #####?????????????????????????????? | | ### #?######????????????????????????? | | ??## ## ###??????????????????????? | | ???#### #??????????????????????? | +----------------------------------------------------+ Best States ------------- Heat Dissipation 25 Energy Generation 10 Energy Capacity 125 Matter Stores 300 Matter Capacity 300 Sight Range 21 Terrain Scan Density 10 Evasion (%) 55 Recoil Reduction 2 Item Schematics ----------------- None Robot Schematics ------------------ None Fabricated ------------ Nothing Alien Tech Used ----------------- None Achievements -------------- None Challenges ------------ None Game ------ Seed UtilityRagnarokMaul Manual? 0 Play Time 00:18:23 Cumulative 202.8 hours Start 2023.07.06 @ 20:06:57 End 2023.07.06 @ 20:23:26 Sessions 1 Manual Loads 0 Difficulty Rogue Special Mode None Game No. 74 Rogue 74 Adventurer 0 Explorer 0 Win Type - Total 5 Types 4/0/0/1/0/0/0/0/0 Lore% 56 Gallery% 69 Achievement% 53 Wizard Run 0 Options --------- ASCII 0 Keyboard 1 Movement Vi Keybinds 0 Fullscreen 1 Font 18/SmallcapsGlow Map View 76x50 Tactical HUD 1 Map Filters NONE Filters NONE Steam 1 RUN: 657c1c67-edf5-400f-82ea-7c979b2ee8e8